[Event "Titled Tuesday Blitz April 25 Early 2023"]
[White "Fan_Of_Chucky"]
[Black "Zaichenko, Daria"]
[BlackFideId "4197453"]
[WhiteElo "2418"]
[BlackElo "2039"]
[Result "1-0"]
[Round "10"]
[TimeControl "180+2"]
[Date "2023.04.25"]
[WhiteClock "0:00:53"]
[BlackClock "0:01:13"]

1. d4 {[%clk 0:03:00]}  d5 {[%clk 0:02:56]} 2. c4 {[%clk 0:03:01]}  e6 {[%clk 0:02:56]} 3. Nf3 {[%clk 0:03:00]}  Be7 {[%clk 0:02:56]} 4. g3 {[%clk 0:03:00]}  Nf6 {[%clk 0:02:56]} 5. Bg2 {[%clk 0:03:01]}  O-O {[%clk 0:02:56]} 6. O-O {[%clk 0:03:00]}  dxc4 {[%clk 0:02:56]} 7. Ne5 {[%clk 0:03:00]}  Nc6 {[%clk 0:02:55]} 8. Nxc6 {[%clk 0:03:00]}  bxc6 {[%clk 0:02:56]} 9. Na3 {[%clk 0:03:01]}  Bxa3 {[%clk 0:02:50]} 10. bxa3 {[%clk 0:03:02]}  Qd6 {[%clk 0:02:43]} 11. e4 {[%clk 0:02:44]}  e5 {[%clk 0:02:38]} 12. dxe5 {[%clk 0:02:34]}  Qxe5 {[%clk 0:02:38]} 13. Rb1 {[%clk 0:02:30]}  Be6 {[%clk 0:02:28]} 14. Bf4 {[%clk 0:02:26]}  Qa5 {[%clk 0:02:26]} 15. Qc2 {[%clk 0:02:15]}  Qxa3 {[%clk 0:02:19]} 16. Bxc7 {[%clk 0:02:11]}  c3 {[%clk 0:02:18]} 17. e5 {[%clk 0:02:08]}  Nd7 {[%clk 0:02:04]} 18. Bd6 {[%clk 0:02:07]}  Qxa2 {[%clk 0:02:05]} 19. Qxa2 {[%clk 0:01:44]}  Bxa2 {[%clk 0:02:04]} 20. Ra1 {[%clk 0:01:44]}  Bd5 {[%clk 0:02:01]} 21. Bxf8 {[%clk 0:01:39]}  Kxf8 {[%clk 0:01:59]} 22. Rfc1 {[%clk 0:01:32]}  Nxe5 {[%clk 0:01:58]} 23. Rxc3 {[%clk 0:01:32]}  Nc4 {[%clk 0:01:53]} 24. Bxd5 {[%clk 0:01:17]}  cxd5 {[%clk 0:01:53]} 25. Rd3 {[%clk 0:01:16]}  Nb6 {[%clk 0:01:53]} 26. Rda3 {[%clk 0:01:12]}  Nc8 {[%clk 0:01:39]} 27. Ra5 {[%clk 0:01:11]}  Nb6 {[%clk 0:01:25]} 28. Rxa7 {[%clk 0:01:01]}  Rd8 {[%clk 0:01:25]} 29. Rb7 {[%clk 0:01:00]}  Nc4 {[%clk 0:01:25]} 30. Raa7 {[%clk 0:00:59]}  d4 {[%clk 0:01:23]} 31. Rxf7+ {[%clk 0:00:59]}  Kg8 {[%clk 0:01:22]} 32. Rxg7+ {[%clk 0:00:59]}  Kh8 {[%clk 0:01:20]} 33. Rxh7+ {[%clk 0:00:59]}  Kg8 {[%clk 0:01:21]} 34. Rag7+ {[%clk 0:00:59]}  Kf8 {[%clk 0:01:21]} 35. Rd7 {[%clk 0:00:52]}  Rxd7 {[%clk 0:01:13]} 36. Rxd7 {[%clk 0:00:53]} 1-0


[Site "https://www.chess.com"]

[Event "Titled Tuesday Blitz April 25 Early 2023"]
[White "Zhukova, Natalia"]
[Black "Bueno, Alfeu Junior Varela"]
[WhiteFideId "14101513"]
[BlackFideId "2108879"]
[WhiteElo "2297"]
[BlackElo "2175"]
[Result "0-1"]
[Round "10"]
[TimeControl "180+2"]
[Date "2023.04.25"]
[WhiteClock "0:00:06"]
[BlackClock "0:00:11"]

1. c4 {[%clk 0:03:00]}  e5 {[%clk 0:02:59]} 2. Nc3 {[%clk 0:03:00]}  Nc6 {[%clk 0:03:00]} 3. Nf3 {[%clk 0:03:01]}  f5 {[%clk 0:03:00]} 4. g3 {[%clk 0:03:00]}  Nf6 {[%clk 0:02:56]} 5. d4 {[%clk 0:02:59]}  e4 {[%clk 0:02:52]} 6. Nh4 {[%clk 0:02:58]}  g6 {[%clk 0:02:46]} 7. Bg2 {[%clk 0:02:54]}  Bg7 {[%clk 0:02:44]} 8. O-O {[%clk 0:02:54]}  O-O {[%clk 0:02:43]} 9. f3 {[%clk 0:02:41]}  d6 {[%clk 0:02:29]} 10. fxe4 {[%clk 0:02:30]}  Nxe4 {[%clk 0:02:25]} 11. Nxe4 {[%clk 0:02:28]}  fxe4 {[%clk 0:02:26]} 12. Rxf8+ {[%clk 0:02:03]}  Qxf8 {[%clk 0:02:25]} 13. d5 {[%clk 0:01:48]}  Ne5 {[%clk 0:02:22]} 14. Bxe4 {[%clk 0:01:30]}  Nxc4 {[%clk 0:02:19]} 15. Qb3 {[%clk 0:01:31]}  Nb6 {[%clk 0:01:58]} 16. Bg5 {[%clk 0:01:14]}  Bh3 {[%clk 0:01:53]} 17. Ng2 {[%clk 0:01:03]}  Re8 {[%clk 0:01:33]} 18. Rf1 {[%clk 0:00:59]}  Bf5 {[%clk 0:01:26]} 19. Bxf5 {[%clk 0:00:46]}  gxf5 {[%clk 0:01:26]} 20. Qd3 {[%clk 0:00:46]}  Re5 {[%clk 0:01:10]} 21. Ne3 {[%clk 0:00:36]}  Qe8 {[%clk 0:00:58]} 22. Rxf5 {[%clk 0:00:27]}  Rxf5 {[%clk 0:00:29]} 23. Nxf5 {[%clk 0:00:28]}  Bxb2 {[%clk 0:00:29]} 24. Nd4 {[%clk 0:00:19]}  Qe5 {[%clk 0:00:20]} 25. Nf3 {[%clk 0:00:08]}  Qxd5 {[%clk 0:00:19]} 26. Qc2 {[%clk 0:00:08]}  Nc4 {[%clk 0:00:14]} 27. Qb3 {[%clk 0:00:06]}  b5 {[%clk 0:00:11]} 0-1


[Site "https://www.chess.com"]

[Event "Titled Tuesday Blitz April 25 Early 2023"]
[White "Blokhin, Sofia"]
[Black "Orujov2008"]
[WhiteFideId "4508190"]
[WhiteElo "1994"]
[BlackElo "2395"]
[Result "0-1"]
[Round "10"]
[TimeControl "180+2"]
[Date "2023.04.25"]
[WhiteClock "0:00:12"]
[BlackClock "0:00:33"]

1. e4 {[%clk 0:03:00]}  e5 {[%clk 0:02:59]} 2. Nf3 {[%clk 0:03:00]}  Nf6 {[%clk 0:03:00]} 3. Nxe5 {[%clk 0:02:58]}  Nxe4 {[%clk 0:02:58]} 4. Qe2 {[%clk 0:02:54]}  Qe7 {[%clk 0:02:58]} 5. Qxe4 {[%clk 0:02:51]}  d6 {[%clk 0:02:59]} 6. d4 {[%clk 0:02:39]}  dxe5 {[%clk 0:02:58]} 7. dxe5 {[%clk 0:02:39]}  Nc6 {[%clk 0:02:58]} 8. Bb5 {[%clk 0:02:32]}  Bd7 {[%clk 0:02:58]} 9. O-O {[%clk 0:02:25]}  O-O-O {[%clk 0:02:43]} 10. Bf4 {[%clk 0:02:19]}  g5 {[%clk 0:02:42]} 11. Bg3 {[%clk 0:02:17]}  f5 {[%clk 0:02:42]} 12. Qa4 {[%clk 0:01:54]}  a6 {[%clk 0:02:38]} 13. e6 {[%clk 0:01:21]}  Qxe6 {[%clk 0:02:26]} 14. Bc4 {[%clk 0:01:19]}  Qe7 {[%clk 0:02:10]} 15. Bxa6 {[%clk 0:01:07]}  f4 {[%clk 0:02:01]} 16. Bxb7+ {[%clk 0:00:44]}  Kxb7 {[%clk 0:02:02]} 17. Qb5+ {[%clk 0:00:43]}  Ka8 {[%clk 0:02:00]} 18. Qa6+ {[%clk 0:00:34]}  Na7 {[%clk 0:02:00]} 19. Nc3 {[%clk 0:00:28]}  fxg3 {[%clk 0:01:59]} 20. Rad1 {[%clk 0:00:20]}  gxh2+ {[%clk 0:01:50]} 21. Kh1 {[%clk 0:00:20]}  Bg7 {[%clk 0:01:40]} 22. Rd5 {[%clk 0:00:19]}  Bxc3 {[%clk 0:01:31]} 23. bxc3 {[%clk 0:00:18]}  Qe6 {[%clk 0:01:27]} 24. Qd3 {[%clk 0:00:15]}  Qe7 {[%clk 0:00:56]} 25. Rd1 {[%clk 0:00:15]}  Rhf8 {[%clk 0:00:46]} 26. Rxd7 {[%clk 0:00:13]}  Rxd7 {[%clk 0:00:46]} 27. Qxd7 {[%clk 0:00:13]}  Qxd7 {[%clk 0:00:47]} 28. Rxd7 {[%clk 0:00:13]}  Kb7 {[%clk 0:00:46]} 29. Rxh7 {[%clk 0:00:13]}  Rxf2 {[%clk 0:00:46]} 30. Kxh2 {[%clk 0:00:12]}  Rxc2 {[%clk 0:00:46]} 31. Rg7 {[%clk 0:00:12]}  Rxc3 {[%clk 0:00:44]} 32. Rxg5 {[%clk 0:00:12]}  Rc2 {[%clk 0:00:45]} 33. Ra5 {[%clk 0:00:12]}  Nc6 {[%clk 0:00:44]} 34. Ra3 {[%clk 0:00:12]}  Kc8 {[%clk 0:00:38]} 35. Kh3 {[%clk 0:00:12]}  Nb4 {[%clk 0:00:38]} 36. g4 {[%clk 0:00:12]}  Rxa2 {[%clk 0:00:34]} 37. Kh4 {[%clk 0:00:12]}  Rxa3 {[%clk 0:00:33]} 0-1


[Site "https://www.chess.com"]

[Event "Titled Tuesday Blitz April 25 Early 2023"]
[White "Prieto Aranguren, Alain"]
[Black "Kopczynski, Michal"]
[WhiteFideId "2268906"]
[BlackFideId "1124200"]
[WhiteElo "2209"]
[BlackElo "2212"]
[Result "1/2-1/2"]
[Round "10"]
[TimeControl "180+2"]
[Date "2023.04.25"]
[WhiteClock "0:00:06"]
[BlackClock "0:00:07"]

1. e4 {[%clk 0:03:00]}  c5 {[%clk 0:02:59]} 2. Bc4 {[%clk 0:03:00]}  g6 {[%clk 0:02:58]} 3. Qf3 {[%clk 0:02:58]}  e6 {[%clk 0:02:56]} 4. Nc3 {[%clk 0:02:53]}  Bg7 {[%clk 0:02:56]} 5. Qg3 {[%clk 0:02:50]}  Nc6 {[%clk 0:02:55]} 6. Nb5 {[%clk 0:02:48]}  Be5 {[%clk 0:02:47]} 7. f4 {[%clk 0:02:47]}  Bb8 {[%clk 0:02:46]} 8. b3 {[%clk 0:02:44]}  a6 {[%clk 0:02:42]} 9. Nc3 {[%clk 0:02:40]}  Nd4 {[%clk 0:02:38]} 10. Kd1 {[%clk 0:02:37]}  Nf6 {[%clk 0:02:34]} 11. e5 {[%clk 0:02:31]}  b5 {[%clk 0:02:27]} 12. Bf1 {[%clk 0:02:26]}  Nh5 {[%clk 0:02:24]} 13. Qf2 {[%clk 0:02:23]}  Bb7 {[%clk 0:02:15]} 14. Nge2 {[%clk 0:02:15]}  Nf5 {[%clk 0:01:53]} 15. Rg1 {[%clk 0:02:05]}  Qh4 {[%clk 0:01:43]} 16. g3 {[%clk 0:01:56]}  Qe7 {[%clk 0:01:40]} 17. g4 {[%clk 0:01:51]}  Nxf4 {[%clk 0:01:39]} 18. Qxf4 {[%clk 0:01:33]}  Nh4 {[%clk 0:01:31]} 19. Ne4 {[%clk 0:01:27]}  g5 {[%clk 0:01:16]} 20. Nf6+ {[%clk 0:01:23]}  Kd8 {[%clk 0:01:15]} 21. Qxg5 {[%clk 0:01:19]}  Nf3 {[%clk 0:01:13]} 22. Qg7 {[%clk 0:01:14]}  Qf8 {[%clk 0:01:08]} 23. Qxf8+ {[%clk 0:01:13]}  Rxf8 {[%clk 0:01:09]} 24. Rg3 {[%clk 0:01:10]}  Bxe5 {[%clk 0:01:08]} 25. Nxh7 {[%clk 0:00:55]}  Rh8 {[%clk 0:01:04]} 26. d4 {[%clk 0:00:49]}  Bxg3 {[%clk 0:01:01]} 27. Nxg3 {[%clk 0:00:46]}  Rxh7 {[%clk 0:01:01]} 28. dxc5 {[%clk 0:00:45]}  Nxh2 {[%clk 0:01:01]} 29. Bd3 {[%clk 0:00:44]}  Rh3 {[%clk 0:00:59]} 30. Bg5+ {[%clk 0:00:41]}  Kc8 {[%clk 0:00:56]} 31. Ne4 {[%clk 0:00:37]}  Rxd3+ {[%clk 0:00:40]} 32. cxd3 {[%clk 0:00:35]}  Bxe4 {[%clk 0:00:40]} 33. dxe4 {[%clk 0:00:33]}  Nxg4 {[%clk 0:00:41]} 34. Ke2 {[%clk 0:00:27]}  Kb7 {[%clk 0:00:36]} 35. Rd1 {[%clk 0:00:26]}  Kc6 {[%clk 0:00:30]} 36. b4 {[%clk 0:00:26]}  Ne5 {[%clk 0:00:26]} 37. Rd6+ {[%clk 0:00:22]}  Kb7 {[%clk 0:00:26]} 38. Bf4 {[%clk 0:00:21]}  f6 {[%clk 0:00:13]} 39. Bxe5 {[%clk 0:00:20]}  fxe5 {[%clk 0:00:13]} 40. Rxd7+ {[%clk 0:00:20]}  Kc6 {[%clk 0:00:14]} 41. Rd6+ {[%clk 0:00:20]}  Kc7 {[%clk 0:00:13]} 42. Rxe6 {[%clk 0:00:20]}  a5 {[%clk 0:00:13]} 43. a3 {[%clk 0:00:18]}  axb4 {[%clk 0:00:14]} 44. axb4 {[%clk 0:00:18]}  Ra4 {[%clk 0:00:15]} 45. Rxe5 {[%clk 0:00:18]}  Rxb4 {[%clk 0:00:15]} 46. Kd3 {[%clk 0:00:18]}  Rb3+ {[%clk 0:00:14]} 47. Kd4 {[%clk 0:00:17]}  Rb1 {[%clk 0:00:10]} 48. Re7+ {[%clk 0:00:16]}  Kc6 {[%clk 0:00:10]} 49. Re6+ {[%clk 0:00:16]}  Kc7 {[%clk 0:00:11]} 50. Rb6 {[%clk 0:00:16]}  Rd1+ {[%clk 0:00:08]} 51. Ke5 {[%clk 0:00:15]}  Rb1 {[%clk 0:00:07]} 52. Kd5 {[%clk 0:00:15]}  Rd1+ {[%clk 0:00:06]} 53. Ke6 {[%clk 0:00:15]}  Rb1 {[%clk 0:00:07]} 54. e5 {[%clk 0:00:15]}  b4 {[%clk 0:00:07]} 55. Ke7 {[%clk 0:00:14]}  b3 {[%clk 0:00:07]} 56. e6 {[%clk 0:00:14]}  b2 {[%clk 0:00:08]} 57. Rb3 {[%clk 0:00:06]}  Kc6 {[%clk 0:00:06]} 58. Ke8 {[%clk 0:00:06]}  Re1 {[%clk 0:00:05]} 59. Rxb2 {[%clk 0:00:05]}  Rxe6+ {[%clk 0:00:05]} 60. Kf7 {[%clk 0:00:06]}  Re5 {[%clk 0:00:06]} 61. Rb6+ {[%clk 0:00:05]}  Kxc5 {[%clk 0:00:05]} 62. Ra6 {[%clk 0:00:05]}  Kd4 {[%clk 0:00:05]} 63. Ra4+ {[%clk 0:00:05]}  Kd5 {[%clk 0:00:05]} 64. Ra5+ {[%clk 0:00:05]}  Kd4 {[%clk 0:00:06]} 65. Rxe5 {[%clk 0:00:06]}  Kxe5 {[%clk 0:00:07]} 1/2-1/2


[Site "https://www.chess.com"]

[Event "Titled Tuesday Blitz April 25 Early 2023"]
[White "Sarkar, Justin"]
[Black "Matveeva, Olga"]
[WhiteFideId "2010011"]
[BlackFideId "24107018"]
[WhiteElo "2189"]
[BlackElo "2056"]
[Result "1-0"]
[Round "10"]
[TimeControl "180+2"]
[Date "2023.04.25"]
[WhiteClock "0:00:04"]
[BlackClock "0:00:13"]

1. e4 {[%clk 0:02:41]}  e6 {[%clk 0:03:00]} 2. Nc3 {[%clk 0:02:28]}  d5 {[%clk 0:02:58]} 3. g3 {[%clk 0:02:28]}  d4 {[%clk 0:02:55]} 4. Nce2 {[%clk 0:02:27]}  c5 {[%clk 0:02:55]} 5. d3 {[%clk 0:02:26]}  Nc6 {[%clk 0:02:55]} 6. f4 {[%clk 0:02:22]}  h5 {[%clk 0:02:52]} 7. Nf3 {[%clk 0:02:21]}  Bd7 {[%clk 0:02:40]} 8. Bg2 {[%clk 0:02:18]}  Be7 {[%clk 0:02:19]} 9. c3 {[%clk 0:02:17]}  dxc3 {[%clk 0:02:14]} 10. bxc3 {[%clk 0:02:17]}  h4 {[%clk 0:02:12]} 11. Be3 {[%clk 0:02:13]}  hxg3 {[%clk 0:02:10]} 12. hxg3 {[%clk 0:02:12]}  Rxh1+ {[%clk 0:02:10]} 13. Bxh1 {[%clk 0:02:12]}  Nh6 {[%clk 0:02:09]} 14. Nh2 {[%clk 0:02:05]}  Qa5 {[%clk 0:02:04]} 15. Qd2 {[%clk 0:01:59]}  f5 {[%clk 0:01:56]} 16. e5 {[%clk 0:01:51]}  Kf7 {[%clk 0:01:51]} 17. Kf2 {[%clk 0:01:43]}  Rh8 {[%clk 0:01:49]} 18. Bf3 {[%clk 0:01:36]}  Nd8 {[%clk 0:01:39]} 19. d4 {[%clk 0:01:19]}  cxd4 {[%clk 0:01:34]} 20. cxd4 {[%clk 0:01:19]}  Bb4 {[%clk 0:01:23]} 21. Qc2 {[%clk 0:01:06]}  Bc6 {[%clk 0:01:19]} 22. Bxc6 {[%clk 0:00:18]}  Nxc6 {[%clk 0:01:20]} 23. Qb3 {[%clk 0:00:16]}  Qa3 {[%clk 0:00:30]} 24. Rb1 {[%clk 0:00:15]}  Qxb3 {[%clk 0:00:24]} 25. Rxb3 {[%clk 0:00:15]}  b6 {[%clk 0:00:23]} 26. d5 {[%clk 0:00:14]}  exd5 {[%clk 0:00:21]} 27. Nd4 {[%clk 0:00:14]}  Nxd4 {[%clk 0:00:19]} 28. Bxd4 {[%clk 0:00:12]}  Be7 {[%clk 0:00:17]} 29. Rc3 {[%clk 0:00:09]}  Ng4+ {[%clk 0:00:14]} 30. Nxg4 {[%clk 0:00:08]}  fxg4 {[%clk 0:00:15]} 31. Kg2 {[%clk 0:00:08]}  Ke6 {[%clk 0:00:14]} 32. Rc7 {[%clk 0:00:06]}  Rd8 {[%clk 0:00:10]} 33. f5+ {[%clk 0:00:05]}  Kf7 {[%clk 0:00:09]} 34. f6 {[%clk 0:00:05]}  gxf6 {[%clk 0:00:09]} 35. exf6 {[%clk 0:00:05]}  Re8 {[%clk 0:00:07]} 36. Rxa7 {[%clk 0:00:05]}  Ke6 {[%clk 0:00:06]} 37. Rxe7+ {[%clk 0:00:05]}  Rxe7 {[%clk 0:00:07]} 38. fxe7 {[%clk 0:00:05]}  Kxe7 {[%clk 0:00:08]} 39. Bxb6 {[%clk 0:00:05]}  Kd6 {[%clk 0:00:07]} 40. Bd4 {[%clk 0:00:06]}  Kc6 {[%clk 0:00:07]} 41. a4 {[%clk 0:00:06]}  Kb7 {[%clk 0:00:07]} 42. Kf2 {[%clk 0:00:06]}  Ka6 {[%clk 0:00:07]} 43. Bc3 {[%clk 0:00:06]}  d4 {[%clk 0:00:06]} 44. Bxd4 {[%clk 0:00:06]}  Ka5 {[%clk 0:00:07]} 45. Ke3 {[%clk 0:00:05]}  Kxa4 {[%clk 0:00:07]} 46. Kf4 {[%clk 0:00:06]}  Kb5 {[%clk 0:00:08]} 47. Kxg4 {[%clk 0:00:06]}  Kc6 {[%clk 0:00:09]} 48. Kf5 {[%clk 0:00:05]}  Kd7 {[%clk 0:00:10]} 49. g4 {[%clk 0:00:05]}  Ke8 {[%clk 0:00:10]} 50. g5 {[%clk 0:00:05]}  Kf7 {[%clk 0:00:11]} 51. g6+ {[%clk 0:00:05]}  Kg8 {[%clk 0:00:12]} 52. Kf6 {[%clk 0:00:05]}  Kf8 {[%clk 0:00:12]} 53. g7+ {[%clk 0:00:04]}  Kg8 {[%clk 0:00:13]} 54. Bc5 {[%clk 0:00:04]} 1-0


[Site "https://www.chess.com"]

[Event "Titled Tuesday Blitz April 25 Early 2023"]
[White "Tarnowska, Aleksandra"]
[Black "Itkis, Boris"]
[WhiteFideId "1180967"]
[BlackFideId "1209167"]
[WhiteElo "1776"]
[BlackElo "2216"]
[Result "1-0"]
[Round "10"]
[TimeControl "180+2"]
[Date "2023.04.25"]
[WhiteClock "0:00:04"]
[BlackClock "0:00:01"]

1. e4 {[%clk 0:02:50]}  c5 {[%clk 0:02:59]} 2. Nf3 {[%clk 0:02:50]}  Nc6 {[%clk 0:02:59]} 3. Bb5 {[%clk 0:02:51]}  e6 {[%clk 0:02:59]} 4. O-O {[%clk 0:02:51]}  Nge7 {[%clk 0:02:59]} 5. c3 {[%clk 0:02:50]}  a6 {[%clk 0:02:59]} 6. Ba4 {[%clk 0:02:50]}  b5 {[%clk 0:02:59]} 7. Bc2 {[%clk 0:02:51]}  Bb7 {[%clk 0:02:59]} 8. d4 {[%clk 0:02:51]}  cxd4 {[%clk 0:02:51]} 9. cxd4 {[%clk 0:02:52]}  Rc8 {[%clk 0:02:44]} 10. Nc3 {[%clk 0:02:42]}  d5 {[%clk 0:02:29]} 11. e5 {[%clk 0:02:35]}  Ng6 {[%clk 0:02:28]} 12. Be3 {[%clk 0:02:24]}  Be7 {[%clk 0:02:25]} 13. Ne2 {[%clk 0:02:05]}  a5 {[%clk 0:02:06]} 14. Rc1 {[%clk 0:01:51]}  Nb4 {[%clk 0:01:44]} 15. Bb1 {[%clk 0:01:51]}  Rxc1 {[%clk 0:01:39]} 16. Bxc1 {[%clk 0:01:29]}  O-O {[%clk 0:01:38]} 17. Nf4 {[%clk 0:01:27]}  Nxf4 {[%clk 0:01:08]} 18. Bxf4 {[%clk 0:01:27]}  g6 {[%clk 0:01:07]} 19. Bh6 {[%clk 0:01:23]}  Re8 {[%clk 0:01:07]} 20. h3 {[%clk 0:01:14]}  Nc6 {[%clk 0:00:55]} 21. Nh2 {[%clk 0:00:53]}  Qb6 {[%clk 0:00:39]} 22. Be3 {[%clk 0:00:52]}  b4 {[%clk 0:00:20]} 23. Ng4 {[%clk 0:00:51]}  Ba6 {[%clk 0:00:20]} 24. Re1 {[%clk 0:00:51]}  h5 {[%clk 0:00:12]} 25. Nh6+ {[%clk 0:00:50]}  Kg7 {[%clk 0:00:13]} 26. Qf3 {[%clk 0:00:50]}  Rf8 {[%clk 0:00:11]} 27. Qf4 {[%clk 0:00:46]}  f5 {[%clk 0:00:07]} 28. exf6+ {[%clk 0:00:38]}  Rxf6 {[%clk 0:00:07]} 29. Qg5 {[%clk 0:00:14]}  Nxd4 {[%clk 0:00:06]} 30. Kh1 {[%clk 0:00:04]}  Bc5 {[%clk 0:00:05]} 31. Rd1 {[%clk 0:00:03]}  Nf5 {[%clk 0:00:04]} 32. Nxf5+ {[%clk 0:00:03]}  Rxf5 {[%clk 0:00:03]} 33. Qh6+ {[%clk 0:00:03]}  Kf6 {[%clk 0:00:02]} 34. Bxf5 {[%clk 0:00:04]}  Bxe3 {[%clk 0:00:01]} 35. Qxg6+ {[%clk 0:00:03]}  Ke5 {[%clk 0:00:01]} 36. Qxe6+ {[%clk 0:00:03]}  Qxe6 {[%clk 0:00:01]} 37. Bxe6 {[%clk 0:00:04]}  Bxf2 {[%clk 0:00:01]} 38. Bxd5 {[%clk 0:00:04]} 1-0


[Site "https://www.chess.com"]

[Event "Titled Tuesday Blitz April 25 Early 2023"]
[White "wqws"]
[Black "Schut, Han"]
[BlackFideId "1005561"]
[WhiteElo "2563"]
[BlackElo "2024"]
[Result "1-0"]
[Round "10"]
[TimeControl "180+2"]
[Date "2023.04.25"]
[WhiteClock "0:00:54"]
[BlackClock "0:00:02"]

1. d4 {[%clk 0:02:30]}  Nf6 {[%clk 0:02:58]} 2. c4 {[%clk 0:02:30]}  g6 {[%clk 0:02:59]} 3. Nc3 {[%clk 0:02:30]}  d5 {[%clk 0:02:59]} 4. cxd5 {[%clk 0:02:28]}  Nxd5 {[%clk 0:03:00]} 5. h4 {[%clk 0:02:29]}  Bg7 {[%clk 0:02:54]} 6. h5 {[%clk 0:02:29]}  c5 {[%clk 0:02:54]} 7. Nf3 {[%clk 0:02:22]}  Nc6 {[%clk 0:02:44]} 8. e4 {[%clk 0:02:20]}  Nxc3 {[%clk 0:02:43]} 9. bxc3 {[%clk 0:02:21]}  cxd4 {[%clk 0:02:42]} 10. cxd4 {[%clk 0:02:22]}  Nxd4 {[%clk 0:02:42]} 11. Rb1 {[%clk 0:02:14]}  Bg4 {[%clk 0:02:24]} 12. Qa4+ {[%clk 0:02:13]}  Bd7 {[%clk 0:02:11]} 13. Qxd4 {[%clk 0:02:00]}  Bxd4 {[%clk 0:02:05]} 14. Nxd4 {[%clk 0:02:00]}  Qa5+ {[%clk 0:01:53]} 15. Bd2 {[%clk 0:01:57]}  Qxa2 {[%clk 0:01:54]} 16. Bd3 {[%clk 0:01:57]}  O-O {[%clk 0:01:41]} 17. hxg6 {[%clk 0:01:55]}  hxg6 {[%clk 0:01:39]} 18. Bc3 {[%clk 0:01:41]}  Rac8 {[%clk 0:01:25]} 19. Nc6 {[%clk 0:01:40]}  f6 {[%clk 0:01:13]} 20. Nxe7+ {[%clk 0:01:38]}  Kf7 {[%clk 0:01:13]} 21. Rh7+ {[%clk 0:01:35]}  Ke6 {[%clk 0:01:06]} 22. Nd5 {[%clk 0:01:33]}  Rxc3 {[%clk 0:00:56]} 23. Nxc3 {[%clk 0:01:32]}  Qa5 {[%clk 0:00:54]} 24. Kd2 {[%clk 0:01:27]}  Rc8 {[%clk 0:00:53]} 25. Rc1 {[%clk 0:01:27]}  b5 {[%clk 0:00:44]} 26. f4 {[%clk 0:01:16]}  b4 {[%clk 0:00:39]} 27. f5+ {[%clk 0:01:12]}  Ke5 {[%clk 0:00:39]} 28. Rxd7 {[%clk 0:01:01]}  bxc3+ {[%clk 0:00:36]} 29. Ke3 {[%clk 0:00:59]}  Qc5+ {[%clk 0:00:15]} 30. Kf3 {[%clk 0:00:58]}  gxf5 {[%clk 0:00:14]} 31. Rd5+ {[%clk 0:00:58]}  Qxd5 {[%clk 0:00:14]} 32. exd5 {[%clk 0:00:59]}  Kxd5 {[%clk 0:00:11]} 33. Bxf5 {[%clk 0:00:59]}  Rc5 {[%clk 0:00:09]} 34. Ke3 {[%clk 0:00:58]}  a5 {[%clk 0:00:08]} 35. Kd3 {[%clk 0:00:57]}  Ke5 {[%clk 0:00:08]} 36. g4 {[%clk 0:00:56]}  a4 {[%clk 0:00:07]} 37. Rxc3 {[%clk 0:00:56]}  Rd5+ {[%clk 0:00:07]} 38. Kc4 {[%clk 0:00:54]}  Rd4+ {[%clk 0:00:05]} 39. Kb5 {[%clk 0:00:54]}  Kf4 {[%clk 0:00:02]} 40. Ra3 {[%clk 0:00:54]} 1-0


[Site "https://www.chess.com"]

[Event "Titled Tuesday Blitz April 25 Early 2023"]
[White "Gonzalez, Francisco Silva"]
[Black "Melikhov, Evgeny V."]
[WhiteFideId "1512285"]
[BlackFideId "4122046"]
[WhiteElo "2074"]
[BlackElo "2158"]
[Result "0-1"]
[Round "10"]
[TimeControl "180+2"]
[Date "2023.04.25"]
[WhiteClock "0:00:54"]
[BlackClock "0:00:53"]

1. d4 {[%clk 0:02:56]}  Nf6 {[%clk 0:02:59]} 2. c4 {[%clk 0:02:52]}  e6 {[%clk 0:02:59]} 3. Nc3 {[%clk 0:02:52]}  Bb4 {[%clk 0:02:59]} 4. a3 {[%clk 0:02:52]}  Bxc3+ {[%clk 0:02:59]} 5. bxc3 {[%clk 0:02:53]}  d5 {[%clk 0:02:58]} 6. e3 {[%clk 0:02:53]}  c6 {[%clk 0:02:56]} 7. Bd3 {[%clk 0:02:52]}  O-O {[%clk 0:02:55]} 8. Ne2 {[%clk 0:02:51]}  b6 {[%clk 0:02:55]} 9. cxd5 {[%clk 0:02:50]}  cxd5 {[%clk 0:02:55]} 10. f3 {[%clk 0:02:50]}  Ba6 {[%clk 0:02:55]} 11. Bxa6 {[%clk 0:02:49]}  Nxa6 {[%clk 0:02:55]} 12. Qd3 {[%clk 0:02:48]}  Nc7 {[%clk 0:02:54]} 13. O-O {[%clk 0:02:42]}  Nd7 {[%clk 0:02:44]} 14. e4 {[%clk 0:02:42]}  dxe4 {[%clk 0:02:40]} 15. fxe4 {[%clk 0:02:42]}  Nc5 {[%clk 0:02:40]} 16. Qf3 {[%clk 0:02:37]}  Nb3 {[%clk 0:02:38]} 17. Bf4 {[%clk 0:02:36]}  Nxa1 {[%clk 0:02:36]} 18. Rxa1 {[%clk 0:02:36]}  Nb5 {[%clk 0:02:30]} 19. a4 {[%clk 0:02:35]}  Nd6 {[%clk 0:02:23]} 20. Ng3 {[%clk 0:02:31]}  Nc4 {[%clk 0:02:07]} 21. Nh5 {[%clk 0:02:24]}  Qh4 {[%clk 0:01:45]} 22. g3 {[%clk 0:02:22]}  Qh3 {[%clk 0:01:45]} 23. Bg5 {[%clk 0:02:21]}  f5 {[%clk 0:01:30]} 24. exf5 {[%clk 0:02:02]}  Qxf5 {[%clk 0:01:27]} 25. Bf4 {[%clk 0:01:39]}  g6 {[%clk 0:01:07]} 26. g4 {[%clk 0:01:37]}  Qd5 {[%clk 0:01:06]} 27. Qg3 {[%clk 0:01:22]}  gxh5 {[%clk 0:01:05]} 28. gxh5+ {[%clk 0:01:22]}  Kh8 {[%clk 0:01:06]} 29. Kf2 {[%clk 0:01:17]}  Rg8 {[%clk 0:01:03]} 30. Qh4 {[%clk 0:01:09]}  Rg2+ {[%clk 0:01:00]} 31. Ke1 {[%clk 0:00:54]}  Qe4+ {[%clk 0:00:56]} 32. Be3 {[%clk 0:00:54]}  Qxe3+ {[%clk 0:00:53]} 0-1


[Site "https://www.chess.com"]

[Event "Titled Tuesday Blitz April 25 Early 2023"]
[White "Albuquerque Junior,Wellington S."]
[Black "Alexikov, Alexander"]
[WhiteFideId "2151480"]
[BlackFideId "14103958"]
[WhiteElo "2109"]
[BlackElo "2186"]
[Result "0-1"]
[Round "10"]
[TimeControl "180+2"]
[Date "2023.04.25"]
[WhiteClock "0:00:09"]
[BlackClock "0:01:47"]

1. c4 {[%clk 0:03:00]}  Nf6 {[%clk 0:02:58]} 2. g3 {[%clk 0:03:00]}  g6 {[%clk 0:02:58]} 3. Bg2 {[%clk 0:03:01]}  Bg7 {[%clk 0:02:59]} 4. Nc3 {[%clk 0:03:02]}  d6 {[%clk 0:02:59]} 5. e4 {[%clk 0:03:02]}  O-O {[%clk 0:02:58]} 6. d3 {[%clk 0:03:03]}  c5 {[%clk 0:02:57]} 7. Nge2 {[%clk 0:03:03]}  Nc6 {[%clk 0:02:57]} 8. O-O {[%clk 0:03:03]}  e5 {[%clk 0:02:57]} 9. h3 {[%clk 0:03:02]}  Ne8 {[%clk 0:02:52]} 10. Be3 {[%clk 0:03:01]}  Nc7 {[%clk 0:02:51]} 11. Qd2 {[%clk 0:03:01]}  Ne6 {[%clk 0:02:51]} 12. Bh6 {[%clk 0:02:59]}  f6 {[%clk 0:02:49]} 13. Bxg7 {[%clk 0:02:58]}  Kxg7 {[%clk 0:02:49]} 14. f4 {[%clk 0:02:58]}  Ned4 {[%clk 0:02:48]} 15. Rf2 {[%clk 0:02:54]}  Bd7 {[%clk 0:02:45]} 16. Raf1 {[%clk 0:02:53]}  Qa5 {[%clk 0:02:43]} 17. a3 {[%clk 0:02:22]}  Ne7 {[%clk 0:02:41]} 18. Kh2 {[%clk 0:01:55]}  a6 {[%clk 0:02:39]} 19. g4 {[%clk 0:01:38]}  h6 {[%clk 0:02:37]} 20. f5 {[%clk 0:00:58]}  g5 {[%clk 0:02:35]} 21. Rb1 {[%clk 0:00:46]}  Nxe2 {[%clk 0:02:20]} 22. Rxe2 {[%clk 0:00:39]}  b5 {[%clk 0:02:16]} 23. b4 {[%clk 0:00:39]}  Qxa3 {[%clk 0:02:14]} 24. cxb5 {[%clk 0:00:19]}  cxb4 {[%clk 0:02:02]} 25. Na2 {[%clk 0:00:19]}  Bxb5 {[%clk 0:01:59]} 26. Qxb4 {[%clk 0:00:12]}  Qxb4 {[%clk 0:01:53]} 27. Rxb4 {[%clk 0:00:12]}  Rac8 {[%clk 0:01:51]} 28. Rd2 {[%clk 0:00:11]}  Rc7 {[%clk 0:01:47]} 29. d4 {[%clk 0:00:09]}  Nc6 {[%clk 0:01:47]} 0-1


[Site "https://www.chess.com"]